lending/lending_fUSD_20260124
["ID","MTS","AMOUNT","RATE_DAILY","PERIOD"]
[403178025,1769245843689,-3476.0,0.00017899,2]
[403178026,1769245843699,-1269.0,0.00017899,2]
[403178027,1769245843708,-184.0,0.00017899,2]
[403178028,1769245843717,-1203.0,0.00017899,2]
[403178029,1769245843726,-916.0,0.00017899,2]
[403178030,1769245843735,-2442.0,0.00017899,2]
[403178031,1769245843744,-567.0,0.00017899,2]
[403178032,1769245843752,-4830.0,0.00017899,2]
[403178033,1769245843763,-315.6693984,0.00017899,2]
[403178034,1769245843773,-151.95758753,0.00017899,2]
[403178035,1769245843783,-185.2534566,0.000179,2]
[403178036,1769245843793,-1000.0,0.000179,2]
[403178037,1769245843805,-5530.7491,0.000179,2]
[403178038,1769245843816,-7740.619,0.000179,2]
[403178039,1769245843827,-1026.82282205,0.000179,2]
[403178040,1769245843837,-1283.02616878,0.000179,2]
[403178041,1769245843847,-150.0,0.00017904,2]
[403178042,1769245843856,-1000.0,0.00017907,2]
[403178043,1769245843865,-150.0,0.00017914,2]
[403178044,1769245843876,-500.0,0.00017918,2]
[403178045,1769245843888,-458.7610726,0.00017918,2]
[403178046,1769245843897,-165.80280518,0.00017918,2]
[403178047,1769245843909,-240.81706826,0.00017918,2]
[403178048,1769245843919,-193.25248034,0.00017918,2]
[403178049,1769245843928,-1000.0,0.00017926,2]
[403178050,1769245843937,-152.0,0.00017927,9]
[403178051,1769245843947,-200.0,0.00017931,2]
[403178052,1769245843956,-151.0,0.00017931,2]
[403178053,1769245843965,-1000.0,0.00017945,2]
[403178054,1769245843977,-200.0,0.00017958,2]
[403178055,1769245843987,-150.0,0.00017961,2]
[403178056,1769245843998,-1000.0,0.00017967,2]
[403178057,1769245844008,-250.5892437,0.00017973,2]
[403178058,1769245844021,-500.0,0.00017973,2]
[403178059,1769245844030,-500.0,0.00017973,2]
[403178060,1769245844039,-500.0,0.00017973,2]
[403178061,1769245844048,-500.0,0.00017973,2]
[403178062,1769245844057,-500.0,0.00017973,2]
[403178063,1769245844066,-500.0,0.00017973,2]
[403178064,1769245844075,-502.21918838,0.00017973,2]
[403178065,1769245844084,-502.11835798,0.00017973,2]
[403178066,1769245844094,-390.53635771,0.00017973,2]
[403178067,1769245844104,-500.0,0.00017973,2]
[403178068,1769245844114,-500.0,0.00017973,2]
[403178069,1769245844124,-500.0,0.00017973,2]
[403178070,1769245844133,-150.0,0.00017973,2]
[403178071,1769245844143,-150.31644971,0.0001799,2]
[403178072,1769245844152,-214.96623226,0.0001799,2]
[403178073,1769245844162,-151.0,0.00017997,2]
[403178074,1769245844171,-1008.959,0.00017999,2]
[403178075,1769245844181,-300.0,0.00017999,2]
[403178076,1769245844191,-34350.72470665,0.00018,2]
[403178077,1769245844200,-625117.99571815,0.00018,2]
[403178078,1769245844209,-1008506.94037177,0.00018,2]
[403178079,1769245844219,-800.37170123,0.00018,2]
[403178080,1769245844227,-2014.56,0.00018,2]
[403178081,1769245844238,-2205047.35610906,0.00018,2]
[403178082,1769245844247,-2104528.03462686,0.00018,2]
[403178083,1769245844263,-283.85068907,0.00018,2]
[403178084,1769245844581,-374.09274648,0.00018,2]
[403178085,1769245844592,-500.0,0.00018,2]
[403178086,1769245844603,-4069.35546928,0.00018,2]
[403178087,1769245844666,-341.04,0.00018,2]
[403178088,1769245845796,-200.0,0.00017751,2]
[403178089,1769245845807,-2000.0,0.00017873,2]
[403178090,1769245845818,-976.735,0.00017873,2]
[403178091,1769245845848,-1023.265,0.00017873,2]
[403178092,1769245845858,-939.98980074,0.00017873,2]
[403178093,1769245845903,-581.45672485,0.00017873,2]
[403178094,1769245846064,-310.546,0.00017873,2]
[403178095,1769245846119,-168.00747441,0.00017873,2]
[403178096,1769245846128,-1774.69246559,0.00018,2]
[403178097,1769245846139,-9102.1,0.00018,2]
[403178098,1769245846151,-3108.4,0.00018,2]
[403178099,1769245846163,-1202.57678075,0.00018,2]
[403178100,1769245846182,-10644.69115927,0.00018,2]
[403178108,1769246182453,683.1,0.000226,120]
[403178110,1769246477287,-300.0,0.00013283,2]
[403178111,1769246477319,-300.0,0.00013283,2]
[403178112,1769246510914,640.0,0.000226,120]
[403178113,1769246581552,300.0,0.00013282,2]
[403178114,1769246641302,300.0,0.00013282,2]
[403178115,1769246642313,150.0,0.00013282,2]
[403178116,1769246701255,1200.0,0.00013282,2]
[403178117,1769246726328,928.37,0.00018,30]
[403178118,1769246761237,300.0,0.00013282,2]
[403178119,1769246821293,300.0,0.00013282,2]
[403178120,1769246822340,150.0,0.00013282,2]
[403178121,1769246832627,3824.42660411,0.0001305,2]
[403178122,1769247001466,1200.0,0.00013183,2]
[403178123,1769247002323,150.0,0.00013183,2]
[403178130,1769247031762,-1975.34666119,0.00013184,2]
[403178132,1769247031777,-497.76627144,0.00013184,2]
[403178133,1769247031791,-11037.99188665,0.00013184,2]
[403178134,1769247031811,-1766.39692795,0.00013184,2]
[403178135,1769247031834,-836.34796185,0.00013184,2]
[403178136,1769247031848,-946.4836003,0.00013184,2]
[403178137,1769247031950,-2952.94751725,0.00013184,2]
[403178138,1769247031964,-684.90508682,0.00013184,2]
[403178139,1769247031978,-879.1913564,0.00013184,2]
[403178140,1769247032004,-6889.881243,0.00013184,2]
[403178141,1769247032018,-1068.07725392,0.00013184,2]
[403178142,1769247032033,-1848.75756851,0.00013184,2]
[403178143,1769247032048,-953.31026791,0.00013184,2]
[403178144,1769247032061,-310.31,0.00013184,2]
[403178145,1769247032084,-2643.57054066,0.00013184,2]
[403178146,1769247032098,-2315.35846697,0.00013184,2]
[403178204,1769247037874,-518.98264,0.00013184,2]
[403178205,1769247037927,-998.93961,0.00013184,2]
[403178206,1769247037942,-3171.08257992,0.00013184,2]
[403178207,1769247037955,-446.49837639,0.00013184,2]
[403178208,1769247037982,-691.87040857,0.00013184,2]
[403178209,1769247037995,-903.93718342,0.00013184,2]
[403178210,1769247038037,-955662.04659088,0.00013184,2]
[403178211,1769247038049,-599.72629079,0.00013283,2]
[403178212,1769247038060,-599.72629079,0.00013283,2]
[403178213,1769247038071,-599.72629079,0.00013283,2]
[403178214,1769247038083,-599.72629079,0.00013283,2]
[403178215,1769247038094,-599.72629079,0.00013283,2]
[403178216,1769247038104,-599.72629079,0.00013283,2]
[403178217,1769247038116,-599.72629079,0.00013283,2]
[403178218,1769247038126,-599.72629079,0.00013283,2]
[403178219,1769247038137,-599.72629079,0.00013283,2]
[403178220,1769247038148,-599.72629079,0.00013283,2]
[403178221,1769247038160,-599.72629079,0.00013283,2]
[403178222,1769247038172,-599.72629079,0.00013283,2]
[403178223,1769247038184,-599.72629079,0.00013283,2]
[403178224,1769247038198,-599.72629079,0.00013283,2]
[403178225,1769247038209,-599.72629079,0.00013283,2]
[403178226,1769247038221,-599.72629079,0.00013283,2]
[403178227,1769247038231,-599.72629079,0.00013283,2]
[403178228,1769247038243,-599.72629079,0.00013283,2]
[403178229,1769247038255,-599.72629079,0.00013283,2]
[403178230,1769247038267,-599.72629079,0.00013283,2]
[403178231,1769247038278,-599.72629079,0.00013283,2]
[403178232,1769247038289,-599.72629079,0.00013283,2]
[403178233,1769247038300,-599.72629079,0.00013283,2]
[403178234,1769247038312,-599.72629079,0.00013283,2]
[403178235,1769247038323,-599.72629079,0.00013283,2]
[403178236,1769247038334,-599.72629079,0.00013283,2]
[403178237,1769247038345,-599.72629079,0.00013283,2]
[403178238,1769247038357,-599.72629079,0.00013283,2]
[403178239,1769247038368,-599.72629079,0.00013283,2]
[403178240,1769247038383,-599.72629079,0.00013283,2]
[403178241,1769247038394,-599.72629079,0.00013283,2]
[403178242,1769247038406,-599.72629079,0.00013283,2]
[403178243,1769247038419,-599.72629079,0.00013283,2]
[403178244,1769247038430,-599.72629079,0.00013283,2]
[403178245,1769247038445,-599.72629079,0.00013283,2]
[403178246,1769247038459,-599.72629079,0.00013283,2]
[403178247,1769247038471,-599.72629079,0.00013283,2]
[403178248,1769247038483,-599.72629079,0.00013283,2]
[403178249,1769247038497,-599.72629079,0.00013283,2]
[403178250,1769247038509,-599.72629079,0.00013283,2]
[403178251,1769247038521,-599.72629079,0.00013283,2]
[403178252,1769247038533,-599.72629079,0.00013283,2]
[403178253,1769247038545,-599.72629079,0.00013283,2]
[403178254,1769247038557,-599.72629079,0.00013283,2]
[403178255,1769247038570,-599.72629079,0.00013283,2]
[403178256,1769247038582,-599.72629079,0.00013283,2]
[403178257,1769247038594,-599.72629079,0.00013283,2]
[403178258,1769247038606,-599.72629079,0.00013283,2]
[403178259,1769247038618,-599.72629079,0.00013283,2]
[403178260,1769247038630,-599.72629079,0.00013283,2]
[403178261,1769247038642,-599.72629079,0.00013283,2]
[403178262,1769247038652,-599.72629079,0.00013283,2]
[403178263,1769247038664,-599.72629079,0.00013283,2]
[403178264,1769247038675,-586.01826128,0.00013283,2]
[403178265,1769247038686,-586.01826128,0.00013283,2]
[403178266,1769247038698,-586.01826128,0.00013283,2]
[403178267,1769247038709,-586.01826128,0.00013283,2]
[403178268,1769247038721,-586.01826128,0.00013283,2]
[403178269,1769247038732,-586.01826128,0.00013283,2]
[403178270,1769247038743,-586.01826128,0.00013283,2]
[403178271,1769247038755,-586.01826128,0.00013283,2]
[403178272,1769247038766,-586.01826128,0.00013283,2]
[403178273,1769247038778,-586.01826128,0.00013283,2]
[403178274,1769247038789,-586.01826128,0.00013283,2]
[403178275,1769247038800,-586.01826128,0.00013283,2]
[403178276,1769247038811,-586.01826128,0.00013283,2]
[403178277,1769247038822,-586.01826128,0.00013283,2]
[403178278,1769247038833,-586.01826128,0.00013283,2]
[403178279,1769247038845,-586.01826128,0.00013283,2]
[403178280,1769247038856,-586.01826128,0.00013283,2]
[403178281,1769247038868,-586.01826128,0.00013283,2]
[403178282,1769247038879,-586.01826128,0.00013283,2]
[403178283,1769247038891,-586.01826128,0.00013283,2]
[403178284,1769247038902,-586.01826128,0.00013283,2]
[403178285,1769247039414,-586.01826128,0.00013283,2]
[403178286,1769247039439,-586.01826128,0.00013283,2]
[403178287,1769247039469,-586.01826128,0.00013283,2]
[403178288,1769247039479,-586.01826128,0.00013283,2]
[403178289,1769247039489,-586.01826128,0.00013283,2]
[403178290,1769247039498,-586.01826128,0.00013283,2]
[403178291,1769247039508,-586.01826128,0.00013283,2]
[403178292,1769247039517,-586.01826128,0.00013283,2]
[403178293,1769247039527,-586.01826128,0.00013283,2]
[403178294,1769247039536,-586.01826128,0.00013283,2]
[403178295,1769247039545,-586.01826128,0.00013283,2]
[403178296,1769247039554,-586.01826127,0.00013283,2]
[403178297,1769247039564,-586.01826127,0.00013283,2]
[403178298,1769247039573,-586.01826127,0.00013283,2]
[403178299,1769247039582,-17124.0,0.00013284,2]
[403178300,1769247039591,-150.0,0.00013732,2]
[403178301,1769247039600,-500.0,0.00013748,2]
[403178302,1769247039609,-159.28,0.00013839,2]
[403178303,1769247039619,-255.0,0.0001429,2]
[403178304,1769247039628,-1680.0,0.00014501,2]
[403178305,1769247039637,-195.0,0.00014502,2]
[403178306,1769247039646,-917.0,0.00014506,2]
[403178307,1769247039655,-159.28,0.00014531,2]
[403178308,1769247039664,-4835.95,0.00014565,2]
[403178309,1769247039673,-1000.0,0.00014575,2]
[403178310,1769247039682,-4835.95,0.00014596,2]
[403178311,1769247039691,-4835.95,0.00014627,2]
[403178312,1769247039700,-4835.95,0.00014657,2]
[403178313,1769247039710,-1260.32231981,0.00014671,2]
[403178314,1769247039719,-4907.7963,0.0001468,2]
[403178315,1769247039728,-2500.0,0.0001468,2]
[403178316,1769247039737,-191.81411785,0.0001468,2]
[403178317,1769247039746,-4835.95,0.00014688,2]
[403178318,1769247039759,-2299.99998911,0.000147,2]
[403178319,1769247039768,-4835.95,0.00014719,2]
[403178320,1769247039777,-4835.95,0.00014749,2]
[403178321,1769247039786,-500.0,0.00014771,2]
[403178322,1769247039795,-500.0,0.00014771,2]
[403178323,1769247039804,-151.0,0.00014771,2]
[403178324,1769247039814,-500.0,0.00014771,2]
[403178325,1769247039823,-500.0,0.00014771,2]
[403178326,1769247039832,-151.0,0.00014771,2]
[403178327,1769247039841,-200.0,0.00014771,2]
[403178328,1769247039850,-500.0,0.00014771,2]
[403178329,1769247039859,-500.0,0.00014771,2]
[403178330,1769247039868,-151.0,0.00014771,2]
[403178331,1769247039877,-500.0,0.00014771,2]
[403178332,1769247039886,-500.0,0.00014771,2]
[403178333,1769247039895,-151.0,0.00014771,2]
[403178334,1769247039905,-500.0,0.00014771,2]
[403178335,1769247039914,-500.0,0.00014771,2]
[403178336,1769247039923,-151.0,0.00014771,2]
[403178337,1769247039932,-500.0,0.00014771,2]
[403178338,1769247039941,-500.0,0.00014771,2]
[403178339,1769247039950,-500.0,0.00014771,2]
[403178340,1769247039958,-200.0,0.00014771,2]
[403178341,1769247039967,-151.0,0.00014771,2]
[403178342,1769247039976,-500.0,0.00014771,2]
[403178343,1769247039986,-500.0,0.00014771,2]
[403178344,1769247039995,-500.0,0.00014771,2]
[403178345,1769247040004,-151.0,0.00014771,2]
[403178346,1769247040013,-500.0,0.00014771,2]
[403178347,1769247040022,-500.0,0.00014771,2]
[403178348,1769247040031,-500.0,0.00014771,2]
[403178349,1769247040040,-151.0,0.00014771,2]
[403178350,1769247040049,-500.0,0.00014771,2]
[403178351,1769247040058,-500.0,0.00014771,2]
[403178352,1769247040067,-500.0,0.00014771,2]
[403178353,1769247040076,-151.0,0.00014771,2]
[403178354,1769247040085,-376.52589806,0.00014771,2]
[403178355,1769247040094,-500.0,0.00014771,2]
[403178356,1769247040103,-500.0,0.00014771,2]
[403178357,1769247040112,-151.0,0.00014771,2]
[403178358,1769247040121,-500.0,0.00014771,2]
[403178359,1769247040130,-500.0,0.00014771,2]
[403178360,1769247040139,-151.0,0.00014771,2]
[403178361,1769247040148,-500.0,0.00014771,2]
[403178362,1769247040157,-500.0,0.00014771,2]
[403178363,1769247040166,-192.8876958,0.00014771,2]
[403178364,1769247040175,-151.0,0.00014771,2]
[403178365,1769247040185,-151.0,0.00014771,2]
[403178366,1769247040194,-151.0,0.00014771,2]
[403178367,1769247040203,-151.0,0.00014771,2]
[403178368,1769247040212,-151.0,0.00014771,2]
[403178369,1769247040221,-151.0,0.00014771,2]
[403178370,1769247040231,-500.0,0.00014771,2]
[403178371,1769247040240,-151.0,0.00014771,2]
[403178372,1769247040249,-500.0,0.00014771,2]
[403178373,1769247040258,-151.0,0.00014771,2]
[403178374,1769247040267,-500.0,0.00014771,2]
[403178375,1769247040277,-151.0,0.00014771,2]
[403178376,1769247040286,-500.0,0.00014771,2]
[403178377,1769247040295,-151.0,0.00014771,2]
[403178378,1769247040304,-500.0,0.00014771,2]
[403178379,1769247040313,-151.0,0.00014771,2]
[403178380,1769247040322,-500.0,0.00014771,2]
[403178381,1769247040331,-222.78650516,0.00014771,2]
[403178382,1769247040340,-500.0,0.00014771,2]
[403178383,1769247040348,-500.0,0.00014771,2]
[403178384,1769247040357,-500.0,0.00014771,2]
[403178385,1769247040367,-500.0,0.00014771,2]
[403178386,1769247040381,-500.0,0.00014771,2]
[403178387,1769247040391,-151.0,0.00014771,2]
[403178388,1769247040400,-151.0,0.00014771,2]
[403178389,1769247040409,-500.0,0.00014771,2]
[403178390,1769247040419,-151.0,0.00014771,2]
[403178391,1769247040429,-500.0,0.00014771,2]
[403178392,1769247040439,-151.0,0.00014771,2]
[403178393,1769247040449,-500.0,0.00014771,2]
[403178394,1769247040458,-151.0,0.00014771,2]
[403178395,1769247040467,-500.0,0.00014771,2]
[403178396,1769247040476,-151.0,0.00014771,2]
[403178397,1769247040486,-500.0,0.00014771,2]
[403178398,1769247040495,-151.0,0.00014771,2]
[403178399,1769247040504,-500.0,0.00014771,2]
[403178400,1769247040513,-151.0,0.00014771,2]
[403178401,1769247040522,-151.0,0.00014771,2]
[403178402,1769247040532,-500.0,0.00014771,2]
[403178403,1769247040541,-500.0,0.00014771,2]
[403178404,1769247040551,-151.0,0.00014771,2]
[403178405,1769247040560,-506.59018681,0.00014771,2]
[403178406,1769247040569,-151.0,0.00014771,2]
[403178407,1769247040579,-500.0,0.00014771,2]
[403178408,1769247040589,-268.35418657,0.00014777,2]
[403178409,1769247040598,-545.77176928,0.00014777,2]
[403178410,1769247040607,-346.45764959,0.00014777,2]
[403178411,1769247040616,-500.0,0.00014777,2]
[403178412,1769247040625,-500.0,0.00014777,2]
[403178413,1769247040634,-500.0,0.00014777,2]
[403178414,1769247040644,-508.14580678,0.00014777,2]
[403178415,1769247040653,-500.0,0.00014779,2]
[403178416,1769247040662,-500.0,0.00014779,2]
[403178417,1769247040671,-500.0,0.00014779,2]
[403178418,1769247040680,-500.0,0.00014779,2]
[403178419,1769247040689,-500.0,0.00014779,2]
[403178420,1769247040698,-500.0,0.00014779,2]
[403178421,1769247040707,-646.91101847,0.00014779,2]
[403178422,1769247040716,-500.0,0.00014779,2]
[403178423,1769247040725,-500.0,0.00014779,2]
[403178424,1769247040735,-500.0,0.00014779,2]
[403178425,1769247040744,-500.0,0.00014779,2]
[403178426,1769247040754,-500.0,0.00014779,2]
[403178427,1769247040763,-500.0,0.00014779,2]
[403178428,1769247040772,-500.0,0.00014779,2]
[403178429,1769247040781,-500.0,0.00014779,2]
[403178430,1769247040790,-500.0,0.00014779,2]
[403178431,1769247040799,-500.0,0.00014779,2]
[403178432,1769247040808,-500.0,0.00014779,2]
[403178433,1769247040817,-500.0,0.00014779,2]
[403178434,1769247040826,-500.0,0.00014779,2]
[403178435,1769247040835,-500.0,0.00014779,2]
[403178436,1769247040845,-500.0,0.00014779,2]
[403178437,1769247040854,-4835.95,0.0001478,2]
[403178438,1769247040863,-385.8840141,0.00014799,2]
[403178439,1769247040873,-4835.95,0.00014811,2]
[403178440,1769247040883,-151.0,0.00014823,2]
[403178441,1769247040891,-151.0,0.00014825,2]
[403178442,1769247040901,-4835.95,0.00014841,2]
[403178443,1769247040912,-4835.95,0.00014872,2]
[403178444,1769247040923,-4835.95,0.00014903,2]
[403178445,1769247040934,-4835.95,0.00014933,2]
[403178446,1769247040943,-4835.95,0.00014964,2]
[403178447,1769247040952,-4835.95,0.00014995,2]
[403178448,1769247040961,-2915.00370567,0.00015025,2]
[403178449,1769247041445,-1911.74091694,0.00015025,2]
[403178450,1769247041461,-9.20537739,0.00015025,2]
[403178451,1769247041470,-409.92309637,0.0001503,2]
[403178452,1769247041482,-850.39922344,0.0001503,2]
[403178453,1769247041491,-1000.0,0.00015041,2]
[403178454,1769247041500,-4835.95,0.00015056,2]
[403178455,1769247041509,-4835.95,0.00015087,2]
[403178456,1769247041518,-4835.95,0.00015117,2]
[403178457,1769247041526,-1408.0,0.00015131,2]
[403178458,1769247041535,-4830.0,0.00015131,2]
[403178459,1769247041545,-2442.0,0.00015131,2]
[403178460,1769247041554,-4835.95,0.00015148,2]
[403178461,1769247041563,-1269.0,0.00015203,2]
[403178462,1769247041572,-184.0,0.00015203,2]
[403178463,1769247041581,-1203.0,0.00015203,2]
[403178464,1769247041590,-916.0,0.00015203,2]
[403178465,1769247041599,-159.28,0.00015223,2]
[403178466,1769247041608,-537.20108499,0.00015266,2]
[403178467,1769247041618,-385.88401406,0.00015316,2]
[403178468,1769247041627,-1260.32231981,0.00015389,2]
[403178469,1769247041635,-155.24,0.00015409,2]
[403178470,1769247041645,-334.01131241,0.00015575,2]
[403178471,1769247041654,-1082.0,0.00015679,2]
[403178472,1769247041663,-943.0,0.00015714,2]
[403178473,1769247041672,-4472.9617,0.00015726,2]
[403178474,1769247041681,-1260.32231981,0.00015747,2]
[403178475,1769247041690,-385.88401406,0.00015833,2]
[403178476,1769247041698,-500.0,0.00015873,2]
[403178477,1769247041707,-159.28,0.00015915,2]
[403178478,1769247041716,-1000.0,0.00015918,2]
[403178479,1769247041725,-2351.0,0.00015951,2]
[403178480,1769247041734,-1260.32231981,0.00016106,2]
[403178481,1769247041743,-7287.0,0.0001617,2]
[403178482,1769247041752,-44028.40154098,0.000162,5]
[403178483,1769247041761,-500.0,0.00016247,2]
[403178484,1769247041771,-191.81411784,0.0001629,2]
[403178485,1769247041779,-385.88401406,0.0001635,2]
[403178486,1769247041789,-500.0,0.00016356,2]
[403178487,1769247041797,-500.0,0.00016356,2]
[403178488,1769247041806,-1000.0,0.00016397,2]
[403178489,1769247041815,-458.92504245,0.00016421,2]
[403178490,1769247041824,-175.0,0.00016438,2]
[403178491,1769247041833,-151.0,0.00016438,2]
[403178492,1769247041843,-1223.61600538,0.00016444,2]
[403178493,1769247041852,-1260.32231981,0.00016465,2]
[403178494,1769247041861,-1000.0,0.00016515,2]
[403178495,1769247041870,-159.28,0.00016607,2]
[403178496,1769247041879,-500.0,0.0001663,2]
[403178497,1769247041887,-1611.59,0.00016705,2]
[403178498,1769247041896,-1260.32231981,0.00016824,2]
[403178499,1769247041905,-385.88401406,0.00016866,2]
[403178500,1769247041914,-9039.19,0.00016922,2]
[403178501,1769247041924,-1026.82,0.00016986,2]
[403178502,1769247041933,-500.0,0.00016989,2]
[403178503,1769247041942,-551.83023748,0.00016989,2]
[403178504,1769247041951,-500.0,0.00016989,2]
[403178505,1769247041960,-250.0,0.00017,2]
[403178506,1769247041969,-1000.0,0.00017112,2]
[403178507,1769247041978,-500.0,0.00017117,2]
[403178508,1769247041987,-1260.32231981,0.00017182,2]
[403178509,1769247041995,-200.0,0.00017224,2]
[403178510,1769247042004,-1000.0,0.0001726,2]
[403178511,1769247042013,-158.81404097,0.00017289,2]
[403178512,1769247042022,-385.88401406,0.00017383,2]
[403178513,1769247042031,-1000.0,0.000174,2]
[403178514,1769247042040,-250.59347185,0.0001742,2]
[403178515,1769247042050,-331.72,0.00017423,2]
[403178516,1769247042058,-1000.0,0.00017534,2]
[403178517,1769247042067,-1260.32231981,0.00017541,2]
[403178518,1769247042076,-3292.0,0.00017546,2]
[403178519,1769247042085,-1000.0,0.000176,2]
[403178520,1769247042094,-557.0,0.00017619,2]
[403178521,1769247042104,-448.54472062,0.0001764,2]
[403178522,1769247042113,-557.0,0.00017644,2]
[403178523,1769247042121,-557.0,0.00017648,2]
[403178524,1769247042130,-557.0,0.00017648,2]
[403178525,1769247042139,-557.0,0.00017651,2]
[403178526,1769247042148,-557.0,0.00017653,2]
[403178527,1769247042157,-557.0,0.00017654,2]
[403178528,1769247042166,-168.37867545,0.00017699,2]
[403178529,1769247042176,-150.0,0.00017699,2]
[403178530,1769247042187,-500.0,0.00017699,2]
[403178531,1769247042197,-500.0,0.00017699,2]
[403178532,1769247042207,-150.0,0.00017699,2]
[403178533,1769247042217,-150.0,0.00017699,2]
[403178534,1769247042228,-150.0,0.00017699,2]
[403178535,1769247042239,-500.0,0.00017699,2]
[403178536,1769247042249,-150.0,0.00017699,2]
[403178537,1769247042258,-150.0,0.00017699,2]
[403178538,1769247042267,-265.96044146,0.00017699,2]
[403178539,1769247042276,-150.0,0.00017699,2]
[403178540,1769247042285,-150.0,0.00017699,2]
[403178541,1769247042294,-150.0,0.00017699,2]
[403178542,1769247042303,-150.0,0.00017699,2]
[403178543,1769247042312,-150.0,0.00017699,2]
[403178544,1769247042321,-150.0,0.00017699,2]
[403178545,1769247042330,-150.0,0.00017699,2]
[403178546,1769247042340,-500.0,0.00017699,2]
[403178547,1769247042595,-1000.0,0.00017709,2]
[403178548,1769247042605,-151.0,0.00017725,2]
[403178550,1769247042614,-9999.99,0.00017728,2]
[403178551,1769247042623,-150.99,0.00017728,2]
[403178552,1769247042632,-773.23,0.00017728,2]
[403178553,1769247042641,-6899.53,0.00017728,2]
[403178554,1769247042651,-557.0,0.00017741,2]
[403178555,1769247042660,-500.0,0.00017754,2]
[403178556,1769247042669,-500.0,0.00017754,2]
[403178557,1769247042678,-150.0,0.00017754,2]
[403178558,1769247042687,-500.0,0.00017754,2]
[403178559,1769247042697,-150.0,0.00017754,2]
[403178560,1769247042705,-150.0,0.00017754,2]
[403178561,1769247042714,-150.0,0.00017754,2]
[403178562,1769247042723,-150.0,0.00017754,2]
[403178563,1769247042735,-150.0,0.00017754,2]
[403178564,1769247042744,-150.0,0.00017754,2]
[403178565,1769247042754,-150.0,0.00017754,2]
[403178566,1769247042763,-500.0,0.00017754,2]
[403178567,1769247042772,-557.0,0.00017763,2]
[403178568,1769247042782,-1000.0,0.000178,2]
[403178569,1769247042793,-2189.388,0.00017808,2]
[403178570,1769247042803,-178.057,0.00017808,2]
[403178571,1769247042813,-1000.0,0.00017808,2]
[403178572,1769247042824,-500.0,0.00017809,2]
[403178573,1769247042835,-150.0,0.00017809,2]
[403178574,1769247042846,-150.0,0.00017809,2]
[403178575,1769247042855,-200.0,0.00017809,2]
[403178576,1769247042864,-200.0,0.00017809,2]
[403178577,1769247042873,-150.0,0.00017809,2]
[403178578,1769247042882,-200.0,0.00017809,2]
[403178579,1769247042891,-200.0,0.00017809,2]
[403178580,1769247042900,-500.0,0.00017809,2]
[403178581,1769247042910,-881.39032,0.0001782,2]
[403178582,1769247042919,-881.39033,0.0001782,2]
[403178583,1769247042928,-1000.0,0.00017838,2]
[403178584,1769247042938,-1000.0,0.00017846,2]
[403178585,1769247042947,-200.0,0.00017856,2]
[403178586,1769247042956,-500.0,0.00017863,2]
[403178587,1769247042965,-150.0,0.00017863,2]
[403178588,1769247042974,-150.0,0.00017863,2]
[403178589,1769247042983,-402.46663168,0.00017863,2]
[403178590,1769247042993,-557.0,0.00017876,2]
[403178591,1769247043004,-385.88401406,0.000179,2]
[403178592,1769247043013,-191.81411784,0.000179,2]
[403178593,1769247043022,-1260.32231981,0.000179,2]
[403178594,1769247043031,-3076.0,0.000179,2]
[403178595,1769247043040,-500.0,0.00017918,2]
[403178596,1769247043049,-150.0,0.00017918,2]
[403178597,1769247043058,-150.0,0.00017918,2]